[Event "46th GRE-chT Premier 2018"]
[Site "Rio Achaia"]
[Date "2018.07.12"]
[Round "4"]
[White "Papanagiotou, Argyro"]
[Black "Fertaki, Eleftheria"]
[Result "0-1"]
[ECO "B23"]
[WhiteElo "1037"]
[BlackElo "1139"]
[Annotator "NA"]
[PlyCount "48"]
[EventDate "2018.07.10"]
[EventType "team-tourn"]
[EventCountry "GRE"]
[SourceTitle "playchess.com"]
[Source "ChessBase"]
[SourceQuality "1"]
[TimeControl "40/5400+30:1800+30"]

1. e4 {[%emt 0:00:00]} c5 {[%emt 0:00:00]} 2. Nc3 {[%emt 0:00:00]} e6 {[%emt 0:00:00]} 3. f4 {[%emt 0:00:43]} Nc6 {[%emt 0:02:31]} 4. Nf3 {[%emt 0:00:54]} d6 {[%emt 0:01:56]} 5. d4 {[%emt 0:02:27]} cxd4 {[%emt 0:07:51]} 6. Nxd4 {[%emt 0:00:09]} a6 {[%emt 0:02:35]} 7. a4 {[%emt 0:00:52]} Qb6 {[%emt 0:05:51]} 8. Nxc6 {[%emt 0:04:48]} bxc6 {[%emt 0:01:29]} 9. Bd2 {[%emt 0:03:04]} Qxb2 {[%emt 0:14:49]} 10. Rb1 {[%emt 0:06:30]} Qa3 {[%emt 0:01:05]} 11. Be3 {[%emt 0:00:13]} Qxc3+ {[%emt 0:00:48]} 12. Qd2 {[%emt 0:00:20]} Qxd2+ {[%emt 0:00:15]} 13. Bxd2 {[%emt 0:00:06]} Nf6 {[%emt 0:00:40]} 14. Bd3 {[%emt 0:03:41]} d5 {[%emt 0:01:06]} 15. e5 {[%emt 0:11:17]} Nd7 {[%emt 0:00:28]} 16. O-O {[%emt 0:01:38]} Nc5 {[%emt 0:00:40]} 17. a5 {[%emt 0:05:59]} Nxd3 {[%emt 0:00:10]} 18. cxd3 {[%emt 0:00:08]} Bc5+ {[%emt 0:00:23]} 19. Kh1 {[%emt 0:00:12]} O-O {[%emt 0:00:26]} 20. Rbc1 {[%emt 0:00:40]} Bd4 {[%emt 0:02:05]} 21. Rxc6 {[%emt 0:00:30]} Bd7 {[%emt 0:00:21]} 22. Rc2 {[%emt 0:01:30]} Rac8 {[%emt 0:01:18]} 23. Ra2 {[%emt 0:01:16]} f6 {[%emt 0:00:51]} 24. Bb4 {[%emt 0:00:56]} Rfe8 {[%emt 0:02:22]} 0-1